bitfinex-derivatives/quotes_ETHF0:USTF0_20251107
["timestamp","ask_amount","ask_price","bid_price","bid_amount"]
[1762521229320,0.00463771,3232.5,3232.4,1.42734]
[1762521229527,0.00463771,3232.5,3232.4,5.72961504]
[1762521230426,0.00829296,3232.5,3232.4,5.22807504]
[1762521230628,0.50982296,3232.5,3232.4,4.1336]
[1762521231730,0.50982296,3232.5,3232.4,3.2078]
[1762521231924,0.50982296,3232.5,3232.4,4.1336]
[1762521232319,0.50982296,3232.5,3232.4,3.2078]
[1762521232528,1.40012296,3232.5,3232.4,4.02987734]
[1762521232731,1.40012296,3232.5,3232.4,3.2078]
[1762521234230,1.39186,3232.3,3232.2,0.82207734]
[1762521234432,0.50156,3232.3,3232.2,0.82207734]
[1762521236033,0.50156,3232.3,3232.2,1.74787734]
[1762521236231,0.00829296,3232.5,3232.4,0.9258]
[1762521236433,0.50982296,3232.5,3232.4,0.9258]
[1762521236634,0.50982296,3232.5,3232.4,1.7482263]
[1762521237137,0.00829296,3232.5,3232.4,1.7482263]
[1762521237338,0.00829296,3232.5,3232.4,4.1336]
[1762521237729,0.50982296,3232.5,3232.4,5.22994924]
[1762521238035,0.50982296,3232.5,3232.4,3.2078]
[1762521238537,0.50154,3232.4,3232.3,0.82261893]
[1762521238740,0.50156,3232.3,3232.2,0.82261893]
[1762521239436,0.50156,3232.3,3232.2,1.74841893]
[1762521239737,0.50156,3232.3,3232.2,0.9258]
[1762521239934,0.00829296,3232.5,3232.2,0.9258]
[1762521240140,0.50982296,3232.5,3232.4,1.74274526]
[1762521240334,0.50982296,3232.5,3232.4,0.9201]
[1762521240530,0.50154,3232.4,3232.3,0.82268646]
[1762521240838,0.50156,3232.3,3232.2,0.9201]
[1762521241539,0.50154,3232.4,3232.1,1.09634924]
[1762521241739,0.50156,3232.3,3232.2,0.9201]
[1762521242533,0.00829296,3232.5,3232.4,0.9201]
[1762521242836,3.7472,3233.5,3232.8,0.9201]
[1762521243139,0.50137,3233.5,3233.4,0.9201]
[1762521243334,0.50139,3233.4,3233.3,0.8228189]
[1762521243535,3.2078,3233.9,3233.3,0.8228189]
[1762521243731,1.40769,3233.4,3233.3,0.8228189]
[1762521243935,0.9063,3232.5,3232.4,3.2078]
[1762521244233,0.50153,3232.5,3232.4,4.13116932]
[1762521244836,3.21040741,3233.4,3232.5,0.9201]
[1762521245134,0.00260741,3233.4,3233.3,0.9201]
[1762521246134,0.00260741,3233.4,3233.3,1.69940346]
[1762521246731,0.50399741,3233.4,3233.3,1.69940346]
[1762521247133,0.00260741,3233.4,3233.3,1.69940346]
[1762521247335,0.00463771,3233.7,3233.6,0.9201]
[1762521247535,0.00463771,3233.7,3233.6,4.90720346]
[1762521247839,0.00463771,3233.7,3233.6,6.55159638]
[1762521248036,0.00463771,3233.7,3233.6,4.90720346]
[1762521248238,0.00463771,3233.7,3233.6,6.55027957]
[1762521248543,0.50847353,3233.7,3233.6,4.90720346]
[1762521248937,1.41477353,3233.7,3233.6,0.47945271]
[1762521249739,0.91343353,3233.7,3233.6,0.47945271]
[1762521249934,1.41477353,3233.7,3233.6,0.47945271]
[1762521250638,0.50847353,3233.7,3233.6,0.47945271]
[1762521250840,1.41477353,3233.7,3233.6,0.47945271]
[1762521251443,0.50847353,3233.7,3233.6,0.47945271]
[1762521255342,0.50847353,3233.7,3233.6,1.39955271]
[1762521255942,0.50847353,3233.7,3233.6,4.60735271]
[1762521256139,1.41477353,3233.7,3233.6,3.68725271]
[1762521256339,1.41477353,3233.7,3233.6,0.47945271]
[1762521257246,1.40771,3233.3,3233.2,3.2078]
[1762521257453,0.50141,3233.3,3233.2,3.2078]
[1762521257654,0.50141,3233.3,3233.2,4.1279]
[1762521257853,0.50141,3233.4,3233.3,0.9201]
[1762521258051,0.00713353,3233.7,3233.2,3.2078]
[1762521258052,0.50141,3233.3,3233.2,3.2078]
[1762521258250,0.50141,3233.3,3233.2,4.1279]
[1762521258447,0.00713353,3233.7,3233.6,0.9201]
[1762521258646,0.00713353,3233.7,3233.6,4.1279]
[1762521259245,3.2078,3234.4,3234.3,0.9201]
[1762521259446,0.5362,3235.2,3234.3,0.9201]
[1762521259759,0.50117,3234.9,3234.8,0.9201]
[1762521260053,0.50114,3235.0,3234.7,4.84952216]
[1762521260262,0.00300518,3235.0,3234.7,4.85332572]
[1762521260464,0.50414518,3235.0,3234.9,0.9201]
[1762521262356,0.00300518,3235.0,3234.9,0.9201]
[1762521264356,0.50414518,3235.0,3234.9,0.9201]
[1762521265066,0.00300518,3235.0,3234.9,0.9201]
[1762521265563,0.00463771,3235.2,3235.1,0.9201]
[1762521265752,0.00463771,3235.2,3235.1,4.1279]
[1762521265956,0.50574771,3235.2,3235.1,4.1279]
[1762521266457,0.50814798,3235.2,3235.1,4.1279]
[1762521267258,0.00703798,3235.2,3235.1,12.1279]
[1762521267464,0.00703798,3235.2,3235.1,5.76392229]
[1762521268165,0.50814798,3235.2,3235.1,3.2078]
[1762521268464,0.00703798,3235.2,3235.1,4.1279]
[1762521268655,0.50814798,3235.2,3235.1,4.1279]
[1762521269066,0.00703798,3235.2,3235.1,4.1279]
[1762521269259,0.00703798,3235.2,3235.1,4.90389812]
[1762521269564,0.50814798,3235.2,3235.1,4.90389812]
[1762521269757,0.50814798,3235.2,3235.1,3.98379812]
[1762521269957,0.50814798,3235.2,3235.1,4.77329812]
[1762521271262,0.50814798,3235.2,3235.1,3.98379812]
[1762521272266,1.82604798,3235.2,3235.1,0.77599812]
[1762521272671,9.82604798,3235.2,3235.1,0.77599812]
[1762521275167,1.31917,3234.8,3234.7,0.00380356]
[1762521279166,1.31924,3234.4,3234.0,1.62715416]
[1762521279369,1.31924,3234.4,3234.0,0.5357]
[1762521279575,1.31924,3234.4,3233.8,1.09145416]
[1762521280067,1.31924,3234.4,3233.9,1.09145416]
[1762521280268,1.31924,3234.4,3234.3,3.21120376]
[1762521280470,1.31924,3234.4,3234.3,0.00340376]
[1762521280967,0.4984,3234.5,3233.6,1.09145416]
[1762521280968,0.7848,3233.7,3233.6,1.09145416]
[1762521281166,0.50139,3233.4,3233.3,1.09145416]
[1762521281370,0.50144,3233.1,3233.0,1.1962]
[1762521281574,0.50149,3232.8,3232.7,1.09145416]
[1762521281773,0.50149,3232.8,3232.7,1.93125416]
[1762521281975,0.50385327,3232.8,3232.7,1.93506392]
[1762521282573,0.00236327,3232.8,3232.7,1.93506392]
[1762521282974,0.50385327,3232.8,3232.7,1.93506392]
[1762521283168,0.50385327,3232.8,3232.7,0.84360976]
[1762521284072,0.00236327,3232.8,3232.7,0.84360976]
[1762521284274,3.2078,3233.8,3233.0,1.3339]
[1762521284476,0.50144,3233.1,3233.0,4.5417]
[1762521285378,0.50526972,3233.1,3233.0,4.5417]
[1762521285579,0.00382972,3233.1,3233.0,4.5417]
[1762521286279,0.00382972,3233.1,3233.0,5.63315416]
[1762521286474,0.50526972,3233.1,3233.0,13.63315416]
[1762521286678,0.00382972,3233.1,3233.0,5.63315416]
[1762521286875,0.50526972,3233.1,3233.0,5.63315416]
[1762521288978,0.50526972,3233.1,3233.0,4.0476]
[1762521289178,0.50526972,3233.1,3233.0,4.5417]
[1762521289781,1.29006972,3233.1,3233.0,3.2078]
[1762521289977,0.50148,3232.8,3232.7,0.84360976]
[1762521291184,0.50148,3232.8,3232.7,0.00380976]
[1762521291687,1.28628,3232.8,3232.7,0.00380976]
[1762521292188,0.50148,3232.8,3232.7,0.00380976]
[1762521292780,1.28636,3232.3,3232.2,3.2078]
[1762521293086,0.50164,3231.8,3231.7,3.2078]
[1762521293784,0.50164,3231.8,3231.7,3.21143818]
[1762521294384,1.28644,3231.8,3231.7,3.21143818]
[1762521295087,1.28644,3231.8,3231.7,0.00363818]
[1762521295392,9.28644,3231.8,3231.7,8.18e-06]
[1762521295592,0.5018,3230.8,3230.7,3.2078]
[1762521295796,0.50187,3230.4,3230.3,4.0476]
[1762521296591,0.50580478,3230.4,3230.3,3.21160092]
[1762521296791,0.00393478,3230.4,3230.3,4.05140092]
[1762521297191,0.50579478,3230.4,3230.3,3.21160092]
[1762521297394,0.50579478,3230.4,3230.3,4.05140092]
[1762521300388,3.478e-05,3230.4,3230.3,4.05140092]
[1762521300594,3.478e-05,3230.4,3230.3,12.55327092]
[1762521300885,3.478e-05,3230.4,3230.3,12.05140092]
[1762521301088,0.4984,3232.0,3231.3,0.7884]
[1762521301286,0.50167,3231.6,3231.5,4.4535]
[1762521301595,0.50173,3231.2,3231.1,3.9962]
[1762521301792,3.2078,3232.4,3231.8,0.7884]
[1762521302088,3.21606093,3232.4,3231.8,0.79303771]
[1762521302489,0.50162,3232.0,3231.8,0.79303771]
[1762521302691,0.50163,3231.9,3231.8,0.79303771]
[1762521303193,3.21606093,3232.4,3232.0,0.7884]
[1762521303395,0.50156,3232.3,3232.2,3.9962]
[1762521303590,0.50163,3231.9,3231.8,3.21243771]
[1762521303793,1.22193,3231.9,3231.8,0.00463771]
[1762521304188,0.50175,3231.1,3231.0,1.27479009]
[1762521304391,0.50176,3231.0,3230.9,0.81749009]
[1762521304591,0.50179,3230.8,3230.7,4.02529009]
[1762521304795,3.6628,3231.5,3230.7,4.02529009]
[1762521304989,3.2078,3231.9,3231.1,3.2078]
[1762521305196,0.50173,3231.2,3231.1,3.9962]
[1762521306694,3.2078,3232.3,3231.7,0.7884]
[1762521306895,0.50156,3232.3,3232.2,4.4535]
[1762521307396,0.00826093,3232.4,3232.3,0.7884]
[1762521307795,0.50980093,3232.4,3232.3,0.7884]
[1762521308099,0.00826093,3232.4,3232.3,0.7884]
[1762521308397,0.50148,3232.8,3232.7,0.7884]
[1762521308589,3.2078,3233.5,3232.8,0.7884]
[1762521308794,3.2078,3233.5,3233.0,0.7884]
[1762521309305,0.50148,3232.8,3232.7,3.2078]
[1762521309496,0.50148,3232.8,3232.7,3.20998074]
[1762521309697,0.50148,3232.8,3232.7,3.99838074]
[1762521310194,1.22178,3232.8,3232.7,3.20998074]
[1762521310594,4.88458,3232.8,3232.7,0.00218074]
[1762521310793,12.88458,3232.8,3232.7,0.00218074]
[1762521310990,8.0,3232.7,3231.8,0.8182129]
[1762521311197,0.50167,3231.6,3231.5,4.0260129]
[1762521311694,1.67697,3231.6,3231.5,3.2078]
[1762521311999,0.50178,3230.9,3230.7,0.8182129]
[1762521312300,0.50181,3230.7,3230.6,0.8182129]
[1762521312500,0.50181,3230.7,3230.6,0.00348383]
[1762521313105,1.22211,3230.7,3230.6,0.00348383]
[1762521313794,0.50181,3230.7,3230.6,0.00348383]
[1762521314494,3.2078,3230.8,3230.6,0.00348383]
[1762521314694,3.2078,3230.8,3230.7,0.7884]
[1762521315495,3.2078,3230.8,3230.7,1.6066129]
[1762521315701,3.2078,3230.8,3230.7,0.7884]
[1762521316398,3.2078,3230.8,3230.7,1.60853629]
[1762521316701,3.70959,3230.8,3230.7,0.7884]
[1762521316894,3.2078,3230.8,3230.7,0.7884]
[1762521317106,3.70959,3230.8,3230.7,0.7884]
[1762521317594,0.50179,3230.8,3230.7,0.7884]
[1762521317787,0.50179,3230.8,3230.7,1.60840683]
[1762521320103,0.50179,3230.8,3230.7,0.7884]
[1762521320402,0.50179,3230.8,3230.7,1.60870329]
[1762521320605,0.50179,3230.8,3230.7,0.7884]
[1762521321094,1.22211,3230.7,3230.6,0.00348383]
[1762521321504,0.50181,3230.7,3230.6,0.00348383]
[1762521321893,0.50490504,3230.9,3230.8,0.7884]
[1762521322093,0.00312504,3230.9,3230.8,0.7884]
[1762521322302,0.00312504,3230.9,3230.8,10.96218274]
[1762521322490,3.21243771,3231.9,3231.5,0.7884]
[1762521322694,0.50166,3231.7,3231.6,1.2457]
[1762521323301,0.50625771,3231.9,3231.8,0.7884]
[1762521323605,0.50165,3231.7,3231.6,4.85379117]
[1762521324000,0.50167,3231.6,3231.5,1.64599117]
[1762521324293,0.00723434,3231.9,3231.6,0.4573]
[1762521324499,0.00723434,3231.9,3231.8,0.7884]
[1762521324999,0.00723434,3231.9,3231.8,3.46382274]
[1762521325299,0.50885434,3231.9,3231.8,0.7884]
[1762521325499,0.50885434,3231.9,3231.8,2.43004689]
[1762521325701,0.50164,3231.8,3231.7,3.2078]
[1762521326000,0.50165,3231.7,3231.6,1.09440782]
[1762521326201,0.50168,3231.5,3231.4,1.09440782]
[1762521326401,0.7203,3231.6,3231.3,4.30220782]
[1762521326606,1.22197,3231.6,3231.5,0.82136894]
[1762521326901,1.67697,3231.6,3231.4,8.94e-06]
[1762521327099,1.67697,3231.6,3231.2,1.09440782]
[1762521327100,0.7203,3231.2,3231.0,1.09440782]
[1762521327295,0.50175,3231.1,3231.0,1.09440782]
[1762521327605,0.50178,3230.9,3230.8,1.09440782]
[1762521328108,3.70958,3230.9,3230.8,1.09440782]
[1762521328300,0.50181,3230.7,3230.6,1.09789165]
[1762521328502,0.50181,3230.7,3230.6,1.88629165]
[1762521329005,0.50181,3230.7,3230.6,1.09789165]
[1762521329304,0.50181,3230.7,3230.6,1.80209165]
[1762521329999,3.2078,3230.9,3230.6,0.70768383]
[1762521330204,0.50178,3230.9,3230.8,0.7042]
[1762521330403,3.2078,3231.4,3231.1,0.7042]
[1762521330794,0.50173,3231.2,3231.1,0.7042]
[1762521330996,3.70951,3231.4,3231.0,1.53550782]
[1762521331201,0.00723434,3231.9,3231.4,0.7042]
[1762521331202,0.50169,3231.5,3231.4,0.7042]
[1762521331504,0.50167,3231.7,3231.6,1.1453]
[1762521331805,0.50165,3231.7,3231.6,1.1453]
[1762521332201,0.50164,3231.8,3231.7,0.7042]
[1762521332514,0.00723434,3231.9,3231.8,0.7042]
[1762521333499,0.00723434,3231.9,3231.8,10.84748689]
[1762521333696,3.2078,3233.2,3232.2,1.1453]
[1762521333903,3.2078,3233.2,3232.3,1.09198734]
[1762521334203,0.50153,3232.6,3232.5,0.7042]
[1762521334902,0.50154,3232.4,3232.3,1.09198734]
[1762521335210,0.50156,3232.3,3232.2,3.21243771]
[1762521335601,0.50156,3232.3,3232.2,4.35773771]
[1762521336206,0.50156,3232.3,3232.2,5.44972505]
[1762521336506,0.50156,3232.3,3232.2,4.30442505]
[1762521336808,0.50156,3232.3,3232.2,3.21243771]
[1762521337196,0.50156,3232.3,3232.2,3.91663771]
[1762521337395,0.0039809,3232.6,3232.2,4.35773771]
[1762521337608,0.0039809,3232.6,3232.2,5.44972505]
[1762521337803,0.50156,3232.3,3232.2,5.44972505]
[1762521338007,0.50156,3232.3,3232.2,5.00862505]
[1762521338505,0.50156,3232.3,3232.2,3.21243771]
[1762521338811,0.50156,3232.3,3232.2,4.35773771]
[1762521339011,0.50156,3232.3,3232.2,5.44972505]
[1762521339312,0.50156,3232.3,3232.2,4.35773771]
[1762521340005,0.0039809,3232.6,3232.2,1.14993771]
[1762521340304,0.0039809,3232.6,3232.5,0.6829]
[1762521341006,0.5055109,3232.6,3232.5,0.6829]
[1762521341208,0.0039809,3232.6,3232.5,0.6829]
[1762521341707,0.0039809,3232.6,3232.5,2.27641734]
[1762521341905,3.2078,3233.4,3233.3,0.6829]
[1762521342097,3.2078,3233.9,3232.8,4.71998434]
[1762521342314,0.50147,3232.9,3232.8,4.3148]
[1762521342501,0.50144,3233.1,3233.0,0.6829]
[1762521342704,0.50143,3233.2,3233.0,0.6829]
[1762521342904,0.00373203,3233.2,3233.1,0.6829]
[1762521343101,0.00373203,3233.2,3233.1,1.18433]
[1762521343308,0.00463771,3233.4,3233.3,1.1843]
[1762521343503,0.00463771,3233.4,3233.3,5.47942679]
[1762521344208,0.00823697,3233.4,3233.3,3.8907]
[1762521344412,0.50143,3233.2,3233.1,0.6829]
[1762521344811,0.00823697,3233.4,3233.3,0.6829]
[1762521345110,0.50142,3233.2,3233.1,3.2078]
[1762521345700,0.50144,3233.1,3233.0,0.00334454]
[1762521345901,1.19094,3233.1,3233.0,0.00334454]
[1762521346703,0.50144,3233.1,3233.0,0.00334454]
[1762521347108,1.19094,3233.1,3233.0,0.00334454]
[1762521347610,0.50144,3233.1,3233.0,0.00334454]
[1762521348613,1.19094,3233.1,3233.0,0.00334454]
[1762521349111,0.50144,3233.1,3233.0,0.00334454]
[1762521349313,0.50144,3233.1,3233.0,0.68624454]
[1762521350712,0.50144,3233.1,3233.0,0.00334454]
[1762521352310,8.0,3233.1,3232.3,3.2078]
[1762521352506,1.19118,3231.5,3230.9,3.80285602]
[1762521352708,0.4326,3231.6,3230.5,0.50184]
[1762521352709,3.2078,3231.0,3230.5,0.50184]
[1762521352907,3.70957,3231.0,3230.9,0.6829]
[1762521353310,3.71289657,3231.0,3230.9,0.6829]
[1762521353515,3.71289657,3231.0,3230.9,0.68645362]
[1762521353711,3.71289657,3231.0,3230.9,0.00355362]
[1762521354016,4.40239657,3231.0,3230.9,0.00355362]
[1762521354208,3.21112657,3231.0,3230.9,0.68645362]
[1762521354404,0.00332657,3231.0,3230.9,1.18823362]
[1762521355810,0.00332657,3231.0,3230.9,8.68645362]
[1762521356011,3.71288657,3231.0,3230.9,0.68645362]
[1762521356206,3.71288657,3231.0,3230.9,0.00355362]
[1762521356407,3.21112657,3231.0,3230.9,8.68645362]
[1762521356912,3.71288657,3231.0,3230.9,8.68645362]
[1762521357522,3.21112657,3231.0,3230.9,9.18823362]
[1762521357818,2.657e-05,3231.0,3230.9,9.18823362]
[1762521358017,3.2078,3231.5,3231.3,0.50171]
[1762521358217,3.70948,3231.5,3231.4,0.6829]
[1762521358617,0.50175,3231.1,3231.0,1.107]
[1762521359117,0.50567167,3231.1,3231.0,1.107]
[1762521359518,0.00392167,3231.1,3231.0,9.60876]
[1762521360223,0.00392167,3231.1,3231.0,9.107]
[1762521360521,0.50567167,3231.1,3231.0,1.107]
[1762521361315,0.50567167,3231.1,3231.0,0.6829]
[1762521362026,1.39876,3231.0,3230.9,0.00355362]
[1762521362824,1.91046,3231.0,3230.9,0.00355362]
[1762521364322,3.21172167,3231.1,3231.0,1.93256]
[1762521364527,3.21172167,3231.1,3231.0,1.4308]
[1762521364730,3.71347167,3231.1,3231.0,1.4308]
[1762521365225,0.50176,3231.0,3230.9,0.00355362]
[1762521365627,1.91046,3231.0,3230.9,0.00355362]
[1762521366618,1.39881,3230.7,3229.8,0.4241]
[1762521366925,4.60661,3230.7,3229.8,0.4241]
[1762521367229,3.2078,3230.7,3230.6,0.50646771]
[1762521367428,3.2078,3230.7,3230.6,1.37406771]
[1762521367628,3.2078,3230.7,3230.6,1.37623587]
[1762521368022,0.00392167,3231.1,3231.0,1.93256]
[1762521368223,1.53779293,3232.8,3231.0,1.93256]
[1762521368224,3.2078,3231.9,3231.8,0.8676]
[1762521368528,3.2078,3231.9,3231.0,0.5632]
[1762521368529,0.50168,3231.6,3231.2,3.70952]
[1762521368925,0.5017,3231.5,3231.4,0.8676]
[1762521369232,0.50533333,3231.5,3231.4,0.8676]
[1762521369625,0.50172,3231.3,3231.2,0.8676]
[1762521369935,0.50175,3231.1,3231.0,0.5632]
[1762521370321,0.50178,3230.9,3230.8,3.2078]
[1762521370526,0.50178,3230.9,3230.6,0.00680587]
[1762521370527,0.50181,3230.7,3230.6,0.00680587]
[1762521371227,3.2078,3230.9,3230.6,0.00680587]
[1762521371535,0.50181,3230.7,3230.6,0.87440587]
[1762521372026,0.50179,3230.8,3230.7,0.8676]
[1762521372834,0.50181,3230.7,3230.6,0.00680587]
[1762521373635,1.39881,3230.7,3230.6,0.00680587]
[1762521374032,0.50181,3230.7,3230.6,0.00680587]
[1762521374733,1.39881,3230.7,3230.6,0.00680587]
[1762521376336,0.502,3229.5,3229.4,0.8676]
[1762521376531,3.2078,3229.5,3229.4,0.8676]
[1762521376735,0.5117,3230.4,3229.4,1.36961]
[1762521376736,0.50199,3229.6,3229.4,1.36961]
[1762521377040,0.50199,3229.6,3229.2,0.92614]
[1762521377238,0.502,3229.5,3229.2,0.42755777]
[1762521378131,0.00463771,3229.7,3229.4,0.502]
[1762521378331,0.00463771,3229.7,3229.2,0.42755777]
[1762521378535,0.50203,3229.3,3229.2,1.29515777]
[1762521378932,4.60683,3229.3,3229.2,0.00345777]
[1762521380140,1.91074,3229.2,3229.1,0.00463771]
[1762521380336,0.50215,3228.5,3228.4,0.8676]
[1762521380538,3.2078,3228.7,3228.6,0.8676]
[1762521380745,3.2078,3228.7,3228.6,1.93294]
[1762521380940,3.2078,3229.2,3228.9,0.8676]
[1762521381142,3.2078,3229.2,3229.1,1.36966]
[1762521381143,3.21025429,3229.2,3229.1,1.36966]
[1762521381338,0.00245429,3229.2,3229.1,1.36966]
[1762521382045,0.00245429,3229.2,3229.1,0.8676]
[1762521382246,0.50208,3229.0,3228.9,0.00381691]
[1762521382446,1.39908,3229.0,3228.9,0.00381691]
[1762521383340,0.50208,3229.0,3228.9,0.00381691]
[1762521384249,1.39908,3229.0,3228.9,0.00381691]
[1762521385254,0.50208,3229.0,3228.9,1.65226694]
[1762521385448,0.50208,3229.0,3228.9,0.00381691]
[1762521385844,0.50208,3229.0,3228.9,1.65419935]
[1762521386052,1.39908,3229.0,3228.9,1.65419935]
[1762521386352,3.21025429,3229.2,3228.9,1.65419935]
[1762521386545,0.50206,3229.1,3229.0,2.51798244]
[1762521386745,3.21025429,3229.2,3229.0,0.8676]
[1762521386945,4.60929429,3229.2,3229.1,1.65154158]
[1762521387245,1.39906,3229.1,3229.0,1.65154158]
[1762521387442,0.50206,3229.1,3229.0,1.65154158]
[1762521387642,3.71230429,3229.2,3229.0,1.65154158]
[1762521387849,3.71229429,3229.2,3229.1,1.65006252]
[1762521388444,0.50207,3229.1,3228.9,1.65387943]
[1762521388646,0.50207,3229.0,3228.9,0.00381691]
[1762521388843,0.50206,3229.1,3228.9,0.50589691]
[1762521389047,0.50206,3229.1,3228.9,0.00381691]
[1762521389247,0.50206,3229.1,3228.9,1.65387943]
[1762521389443,3.21025429,3229.2,3228.9,1.65387943]
[1762521389656,3.21025429,3229.2,3228.9,0.00381691]
[1762521390155,0.50207,3229.0,3228.9,0.00381691]
[1762521390450,3.21025429,3229.2,3229.1,1.36966]
[1762521390656,3.21025429,3229.2,3229.1,3.01952426]
[1762521390848,3.71229429,3229.2,3229.1,0.8676]
[1762521391048,3.71229429,3229.2,3229.0,2.15193426]
[1762521391244,1.82357,3229.0,3228.9,0.00381691]
[1762521392052,1.82357,3229.0,3228.0,3.28207682]
[1762521392053,1.31967,3228.4,3228.3,1.55548767]
[1762521392254,4.52747,3228.4,3227.7,2.17348006]
[1762521392453,3.2078,3228.8,3228.0,3.6923]
[1762521392648,3.2078,3228.4,3228.0,0.98673]
[1762521392953,3.2078,3228.8,3228.3,1.33517]
[1762521393145,0.50217,3228.4,3228.3,0.00340697]
[1762521393349,1.31967,3228.4,3228.3,0.00340697]
[1762521394256,0.50229,3227.6,3227.5,2.61908006]
[1762521394456,0.50233,3227.4,3227.0,2.65798006]
[1762521394760,3.2078,3227.2,3226.8,2.17348006]
[1762521394952,3.2078,3227.6,3227.1,0.833]
[1762521395162,3.2078,3227.6,3226.8,3.2078]
[1762521395359,3.2078,3227.6,3226.8,0.5051962]
[1762521395662,3.2078,3227.6,3226.8,0.0027862]
[1762521395855,3.2078,3227.6,3227.3,0.50233]
[1762521396156,3.2078,3227.6,3227.5,0.833]
[1762521396559,0.00464503,3227.9,3227.8,0.833]
[1762521396859,0.50689503,3227.9,3227.7,0.50227]
[1762521397056,0.50689503,3227.9,3227.4,0.3522]
[1762521397255,0.00464503,3227.9,3227.7,0.50227]
[1762521397450,0.00464503,3227.9,3227.8,0.833]
[1762521399353,3.21244503,3227.9,3227.8,0.833]
[1762521399558,3.21244503,3227.9,3227.4,0.3522]
[1762521399559,0.50229,3227.6,3227.4,0.3522]
[1762521399759,3.21244503,3227.9,3227.5,0.5023]
[1762521399959,3.21244503,3227.9,3227.6,0.50229]
[1762521400155,0.50239,3227.0,3226.9,2.17348006]
[1762521400459,0.4992,3226.8,3225.2,3.2078]
[1762521400752,0.50259,3225.7,3225.5,0.50262]
[1762521400958,3.2078,3226.0,3225.2,3.2078]
[1762521401253,0.50262,3225.5,3225.3,0.50265]
[1762521401456,0.5061116,3225.5,3225.3,0.00322069]
[1762521402053,0.5061116,3225.5,3225.3,0.50586069]
[1762521402250,0.0034916,3225.5,3225.3,0.00322069]
[1762521402453,3.2078,3225.4,3225.3,0.00322069]
[1762521402650,0.0034916,3225.5,3225.3,0.00322069]
[1762521402958,0.0034916,3225.5,3225.4,0.7763]
[1762521403354,0.5061216,3225.5,3225.3,0.00322069]
[1762521404052,0.5061216,3225.5,3225.3,0.50587069]
[1762521404558,0.5061116,3225.5,3225.3,0.50587069]
[1762521405850,0.0034916,3225.5,3225.3,0.50587069]
[1762521406157,0.5061216,3225.5,3225.3,0.50587069]
[1762521406366,0.5061216,3225.5,3225.3,0.00322069]
[1762521406553,4.0313,3225.4,3225.3,0.00322069]
[1762521406752,3.2078,3225.4,3225.3,0.00322069]
[1762521406953,3.71043,3225.4,3225.3,0.00322069]
[1762521407154,4.53393,3225.4,3225.3,0.00322069]
[1762521407553,0.0034916,3225.5,3225.3,1.28217069]
[1762521407760,0.0034916,3225.5,3225.3,0.00322069]
[1762521407954,0.50263,3225.4,3225.3,0.00322069]
[1762521408157,4.53393,3225.4,3225.3,0.00322069]
[1762521408857,0.50263,3225.4,3225.3,0.00322069]
[1762521409055,3.2078,3225.4,3225.3,0.77952069]
[1762521409452,3.2078,3225.4,3225.3,1.28217069]
[1762521409653,0.0034916,3225.5,3225.4,1.27893]
[1762521410861,0.0034916,3225.5,3225.4,9.27893]
[1762521411059,0.00464503,3226.3,3226.2,1.77781]
[1762521411649,0.00464503,3226.3,3226.2,9.77781]
[1762521412054,0.00795749,3226.3,3226.2,15.97701]
[1762521412254,0.00795749,3226.3,3226.2,9.77781]
[1762521412455,0.00795749,3226.3,3226.2,0.7763]
[1762521412760,0.51044749,3226.3,3226.2,0.7763]
[1762521413058,0.00795749,3226.3,3226.2,1.27881]
[1762521413266,0.00795749,3226.3,3226.2,9.77781]
[1762521413660,0.00795749,3226.3,3226.2,15.97701]
[1762521414367,3.2078,3227.0,3226.9,0.5024]
[1762521414669,0.25377,3227.2,3227.1,1.27867]
[1762521415362,0.5024,3226.9,3226.8,0.50364503]
[1762521415555,0.5024,3226.9,3226.8,0.00464503]
[1762521415760,4.5337,3226.9,3226.8,0.00464503]
[1762521415961,3.7102,3226.9,3226.8,0.00464503]
[1762521416155,0.5024,3226.9,3226.8,0.00464503]
[1762521416356,0.25679549,3227.2,3226.8,0.00464503]
[1762521416568,0.5024,3226.9,3226.8,0.00464503]
[1762521417762,1.3259,3226.9,3226.8,0.00464503]
[1762521417968,0.4992,3226.8,3225.9,3.2078]
[1762521418162,0.4992,3226.8,3226.0,0.50254]
[1762521418363,0.50254,3226.0,3225.9,3.71035]
[1762521418763,0.50254,3226.0,3225.9,3.2078]
[1762521419067,0.5026,3225.6,3225.5,3.2078]
[1762521419269,0.00464503,3225.9,3225.8,0.7476]
[1762521419462,0.00464503,3225.9,3225.8,1.25017]
[1762521419769,0.00464503,3225.9,3225.6,0.4555]
[1762521419965,0.00464503,3225.9,3225.8,1.25017]
[1762521420462,4.503e-05,3225.9,3225.8,1.25017]
[1762521421470,4.503e-05,3225.9,3225.5,3.2124171]
[1762521421765,0.5026,3225.6,3225.5,3.9600171]
[1762521421966,0.50260503,3225.9,3225.7,0.50257]
[1762521422167,4.503e-05,3225.9,3225.6,0.5026]
[1762521422566,4.503e-05,3225.9,3225.8,0.50257]
[1762521422871,0.50249,3226.3,3226.2,1.25011]
[1762521423065,0.50248,3226.4,3226.3,0.50249]
[1762521423467,0.50246,3226.6,3226.5,0.50246]
[1762521423665,3.21244503,3226.9,3226.2,0.4555]
[1762521423867,0.50247,3226.5,3226.3,0.50248]
[1762521424267,0.50244,3226.6,3226.5,0.50245]
[1762521424460,0.4259,3226.8,3226.2,0.4555]
[1762521424663,0.50254,3226.0,3225.9,3.71034]
[1762521424868,3.2078,3226.5,3225.9,3.2078]
[1762521425169,0.4259,3226.8,3225.6,1.62853498]
[1762521425170,0.50258,3225.7,3225.6,1.62853498]
[1762521425471,1.2655,3225.6,3225.5,3.2124171]
[1762521425972,0.5026,3225.6,3225.5,3.2124171]
[1762521426367,3.2078,3226.0,3225.5,0.0046171]
[1762521426669,0.5026,3225.6,3225.5,0.0046171]
[1762521426976,1.2655,3225.6,3225.5,0.0046171]
[1762521427170,4.8992,3225.6,3225.5,0.0046171]
[1762521428870,4.4733,3225.6,3225.5,0.0046171]
[1762521429567,3.7104,3225.6,3225.5,0.0046171]
[1762521429964,3.2078,3225.6,3225.5,0.5072371]
[1762521430163,3.2078,3225.6,3225.5,1.2548371]
[1762521430667,3.7104,3225.6,3225.5,0.7522171]
[1762521430872,3.7104,3225.6,3225.5,1.2548371]